[Event "Titled Tuesday Blitz December 06 Early 2022"]
[White "Rian, Kapriaga"]
[Black "Franca, Ricardo Bedin"]
[WhiteFideId "7103263"]
[BlackFideId "2107066"]
[WhiteElo "2292"]
[BlackElo "2452"]
[Result "0-1"]
[Round "08"]
[TimeControl "180+1"]
[Date "2022.12.07"]
[WhiteClock "0:00:02"]
[BlackClock "0:00:10"]

1. d4 {[%clk 0:03:00]}  Nf6 {[%clk 0:02:54]} 2. Nf3 {[%clk 0:03:00]}  d6 {[%clk 0:02:47]} 3. Nc3 {[%clk 0:02:55]}  Nbd7 {[%clk 0:02:40]} 4. e4 {[%clk 0:02:54]}  e5 {[%clk 0:02:41]} 5. Be2 {[%clk 0:02:46]}  Be7 {[%clk 0:02:36]} 6. O-O {[%clk 0:02:45]}  O-O {[%clk 0:02:37]} 7. a4 {[%clk 0:02:44]}  c6 {[%clk 0:02:37]} 8. a5 {[%clk 0:02:42]}  Rb8 {[%clk 0:02:36]} 9. h3 {[%clk 0:02:39]}  b5 {[%clk 0:02:35]} 10. axb6 {[%clk 0:02:38]}  axb6 {[%clk 0:02:36]} 11. Re1 {[%clk 0:02:36]}  b5 {[%clk 0:02:35]} 12. Bf1 {[%clk 0:02:31]}  Qc7 {[%clk 0:02:10]} 13. b3 {[%clk 0:02:27]}  Re8 {[%clk 0:02:10]} 14. Bb2 {[%clk 0:02:26]}  Bf8 {[%clk 0:02:08]} 15. d5 {[%clk 0:02:19]}  b4 {[%clk 0:02:08]} 16. dxc6 {[%clk 0:02:14]}  Qxc6 {[%clk 0:02:07]} 17. Nd5 {[%clk 0:02:07]}  Nxd5 {[%clk 0:02:07]} 18. exd5 {[%clk 0:02:03]}  Qb6 {[%clk 0:02:03]} 19. Nd2 {[%clk 0:01:56]}  Nc5 {[%clk 0:01:58]} 20. Nc4 {[%clk 0:01:54]}  Qc7 {[%clk 0:01:59]} 21. Bd3 {[%clk 0:01:50]}  f5 {[%clk 0:01:58]} 22. Ne3 {[%clk 0:01:37]}  g6 {[%clk 0:01:37]} 23. f4 {[%clk 0:01:34]}  exf4 {[%clk 0:01:23]} 24. Nc4 {[%clk 0:01:33]}  Ba6 {[%clk 0:01:18]} 25. Qf3 {[%clk 0:01:25]}  Nxd3 {[%clk 0:01:08]} 26. cxd3 {[%clk 0:01:21]}  Bxc4 {[%clk 0:01:04]} 27. dxc4 {[%clk 0:01:13]}  Qc5+ {[%clk 0:00:59]} 28. Kh2 {[%clk 0:01:09]}  Re3 {[%clk 0:00:58]} 29. Qxf4 {[%clk 0:01:01]}  Rxb3 {[%clk 0:00:58]} 30. Re2 {[%clk 0:00:55]}  Rc8 {[%clk 0:00:50]} 31. Rc1 {[%clk 0:00:51]}  Rc7 {[%clk 0:00:47]} 32. Qg5 {[%clk 0:00:41]}  Rxb2 {[%clk 0:00:30]} 33. Rxb2 {[%clk 0:00:37]}  Bg7 {[%clk 0:00:30]} 34. Re2 {[%clk 0:00:31]}  Be5+ {[%clk 0:00:26]} 35. Rxe5 {[%clk 0:00:22]}  dxe5 {[%clk 0:00:27]} 36. Qd8+ {[%clk 0:00:21]}  Kg7 {[%clk 0:00:28]} 37. d6 {[%clk 0:00:20]}  Rf7 {[%clk 0:00:27]} 38. Rd1 {[%clk 0:00:15]}  e4 {[%clk 0:00:10]} 39. d7 {[%clk 0:00:13]}  Qe5+ {[%clk 0:00:11]} 40. Kh1 {[%clk 0:00:12]}  e3 {[%clk 0:00:12]} 41. Qe8 {[%clk 0:00:10]}  Re7 {[%clk 0:00:09]} 42. Qxe7+ {[%clk 0:00:09]}  Qxe7 {[%clk 0:00:09]} 43. d8=Q {[%clk 0:00:08]}  Qxd8 {[%clk 0:00:10]} 44. Rxd8 {[%clk 0:00:07]}  b3 {[%clk 0:00:10]} 45. Re8 {[%clk 0:00:04]}  b2 {[%clk 0:00:10]} 46. Rxe3 {[%clk 0:00:03]}  b1=Q+ {[%clk 0:00:10]} 47. Kh2 {[%clk 0:00:02]}  Qb8+ {[%clk 0:00:10]} 0-1


[Site "https://www.chess.com"]

[Event "Titled Tuesday Blitz December 06 Early 2022"]
[White "Salman, Pavel"]
[Black "Kravtsiv, Martyn"]
[WhiteFideId "24153753"]
[BlackFideId "14113147"]
[WhiteElo "2187"]
[BlackElo "2695"]
[Result "0-1"]
[Round "08"]
[TimeControl "180+1"]
[Date "2022.12.06"]
[WhiteClock "0:00:04"]
[BlackClock "0:00:14"]

1. Nf3 {[%clk 0:03:00]}  d5 {[%clk 0:02:58]} 2. g3 {[%clk 0:03:00]}  g6 {[%clk 0:02:58]} 3. Bg2 {[%clk 0:03:00]}  Bg7 {[%clk 0:02:59]} 4. O-O {[%clk 0:03:01]}  c5 {[%clk 0:02:57]} 5. d3 {[%clk 0:03:01]}  Nc6 {[%clk 0:02:55]} 6. e4 {[%clk 0:02:59]}  dxe4 {[%clk 0:02:50]} 7. dxe4 {[%clk 0:02:59]}  Qxd1 {[%clk 0:02:50]} 8. Rxd1 {[%clk 0:03:00]}  Bg4 {[%clk 0:02:49]} 9. c3 {[%clk 0:02:48]}  Ne5 {[%clk 0:02:49]} 10. Nbd2 {[%clk 0:02:44]}  Rd8 {[%clk 0:02:42]} 11. Rf1 {[%clk 0:02:35]}  Nd3 {[%clk 0:02:42]} 12. Nc4 {[%clk 0:02:25]}  Nf6 {[%clk 0:02:38]} 13. Nce5 {[%clk 0:02:03]}  Bxf3 {[%clk 0:02:35]} 14. Nxf3 {[%clk 0:02:01]}  Nxe4 {[%clk 0:02:35]} 15. Be3 {[%clk 0:01:50]}  Nxb2 {[%clk 0:02:20]} 16. Rab1 {[%clk 0:01:36]}  Bxc3 {[%clk 0:02:18]} 17. Rfc1 {[%clk 0:01:37]}  Nd3 {[%clk 0:02:13]} 18. Rc2 {[%clk 0:01:30]}  Nb4 {[%clk 0:02:12]} 19. Re2 {[%clk 0:01:25]}  Bf6 {[%clk 0:02:00]} 20. Bd2 {[%clk 0:00:57]}  Nxd2 {[%clk 0:01:57]} 21. Nxd2 {[%clk 0:00:56]}  b6 {[%clk 0:01:54]} 22. Ne4 {[%clk 0:00:49]}  O-O {[%clk 0:01:53]} 23. Nxf6+ {[%clk 0:00:46]}  exf6 {[%clk 0:01:52]} 24. a3 {[%clk 0:00:44]}  Nd5 {[%clk 0:01:46]} 25. Bxd5 {[%clk 0:00:37]}  Rxd5 {[%clk 0:01:47]} 26. Re7 {[%clk 0:00:38]}  Ra8 {[%clk 0:01:46]} 27. Rc7 {[%clk 0:00:34]}  Rd3 {[%clk 0:01:45]} 28. a4 {[%clk 0:00:32]}  Ra3 {[%clk 0:01:46]} 29. Re1 {[%clk 0:00:27]}  Rxa4 {[%clk 0:01:46]} 30. Ree7 {[%clk 0:00:27]}  Rf8 {[%clk 0:01:45]} 31. Rc6 {[%clk 0:00:20]}  Ra2 {[%clk 0:01:40]} 32. Rxf6 {[%clk 0:00:19]}  c4 {[%clk 0:01:39]} 33. Rc6 {[%clk 0:00:17]}  b5 {[%clk 0:01:40]} 34. Rb7 {[%clk 0:00:18]}  a6 {[%clk 0:01:39]} 35. Kg2 {[%clk 0:00:17]}  Ra3 {[%clk 0:01:33]} 36. h4 {[%clk 0:00:17]}  h5 {[%clk 0:01:25]} 37. Rcc7 {[%clk 0:00:12]}  c3 {[%clk 0:01:24]} 38. Kf3 {[%clk 0:00:12]}  Re8 {[%clk 0:01:17]} 39. Kf4 {[%clk 0:00:09]}  Ra4+ {[%clk 0:00:38]} 40. Kg5 {[%clk 0:00:09]}  Rc4 {[%clk 0:00:38]} 41. Rxf7 {[%clk 0:00:09]}  Re5+ {[%clk 0:00:19]} 42. Kh6 {[%clk 0:00:08]}  c2 {[%clk 0:00:19]} 43. Rg7+ {[%clk 0:00:08]}  Kf8 {[%clk 0:00:19]} 44. Kh7 {[%clk 0:00:04]}  Re7 {[%clk 0:00:14]} 0-1


[Site "https://www.chess.com"]

[Event "Titled Tuesday Blitz December 06 Early 2022"]
[White "Sarana, Alexey"]
[Black "Gormally, Daniel W"]
[WhiteFideId "24133795"]
[BlackFideId "406465"]
[WhiteElo "2708"]
[BlackElo "2553"]
[Result "1-0"]
[Round "08"]
[TimeControl "180+1"]
[Date "2022.12.06"]
[WhiteClock "0:00:45"]
[BlackClock "0:00:11"]

1. d4 {[%clk 0:03:00]}  Nf6 {[%clk 0:02:58]} 2. c4 {[%clk 0:03:01]}  g6 {[%clk 0:02:59]} 3. Nc3 {[%clk 0:03:01]}  Bg7 {[%clk 0:02:59]} 4. e4 {[%clk 0:03:02]}  O-O {[%clk 0:02:59]} 5. Be2 {[%clk 0:03:02]}  c5 {[%clk 0:02:59]} 6. d5 {[%clk 0:03:02]}  d6 {[%clk 0:03:00]} 7. Be3 {[%clk 0:03:02]}  e6 {[%clk 0:02:59]} 8. Nf3 {[%clk 0:03:02]}  exd5 {[%clk 0:02:59]} 9. cxd5 {[%clk 0:03:03]}  b5 {[%clk 0:02:53]} 10. e5 {[%clk 0:03:02]}  dxe5 {[%clk 0:02:23]} 11. Bxc5 {[%clk 0:03:02]}  e4 {[%clk 0:02:12]} 12. Nd4 {[%clk 0:02:50]}  Nxd5 {[%clk 0:01:56]} 13. Bxf8 {[%clk 0:02:41]}  Nxc3 {[%clk 0:01:52]} 14. bxc3 {[%clk 0:02:39]}  Qxf8 {[%clk 0:01:53]} 15. Nxb5 {[%clk 0:02:36]}  Nc6 {[%clk 0:01:45]} 16. O-O {[%clk 0:02:36]}  a6 {[%clk 0:01:30]} 17. Qd5 {[%clk 0:02:19]}  axb5 {[%clk 0:01:24]} 18. Qxc6 {[%clk 0:02:19]}  Be6 {[%clk 0:01:23]} 19. Bxb5 {[%clk 0:02:17]}  Rc8 {[%clk 0:01:14]} 20. Qxe4 {[%clk 0:02:15]}  Bxc3 {[%clk 0:01:11]} 21. Rac1 {[%clk 0:02:14]}  Qc5 {[%clk 0:01:05]} 22. Ba6 {[%clk 0:02:08]}  Rc6 {[%clk 0:00:55]} 23. Bb7 {[%clk 0:02:05]}  Rc7 {[%clk 0:00:49]} 24. a4 {[%clk 0:02:05]}  Qb6 {[%clk 0:00:37]} 25. Bd5 {[%clk 0:02:04]}  Bf5 {[%clk 0:00:36]} 26. Qe8+ {[%clk 0:01:31]}  Kg7 {[%clk 0:00:35]} 27. Rxc3 {[%clk 0:01:22]}  Rxc3 {[%clk 0:00:34]} 28. Qxf7+ {[%clk 0:01:22]}  Kh6 {[%clk 0:00:33]} 29. Qf8+ {[%clk 0:01:23]}  Kh5 {[%clk 0:00:31]} 30. h3 {[%clk 0:01:07]}  Qd4 {[%clk 0:00:28]} 31. Qd6 {[%clk 0:00:59]}  Rd3 {[%clk 0:00:25]} 32. Bf3+ {[%clk 0:00:58]}  Kg5 {[%clk 0:00:23]} 33. Qe7+ {[%clk 0:00:50]}  Kh6 {[%clk 0:00:22]} 34. a5 {[%clk 0:00:50]}  Rxf3 {[%clk 0:00:19]} 35. gxf3 {[%clk 0:00:50]}  Qa4 {[%clk 0:00:13]} 36. Re1 {[%clk 0:00:46]}  Qxa5 {[%clk 0:00:11]} 37. Qh4+ {[%clk 0:00:45]} 1-0


[Site "https://www.chess.com"]

[Event "Titled Tuesday Blitz December 06 Early 2022"]
[White "Sargsyan, Anna M."]
[Black "Pakleza, Zbigniew"]
[WhiteFideId "13308130"]
[BlackFideId "1119290"]
[WhiteElo "2633"]
[BlackElo "2798"]
[Result "0-1"]
[Round "08"]
[TimeControl "180+1"]
[Date "2022.12.07"]
[WhiteClock "0:00:16"]
[BlackClock "0:01:17"]

1. e4 {[%clk 0:02:48]}  d6 {[%clk 0:03:00]} 2. d4 {[%clk 0:02:45]}  Nf6 {[%clk 0:03:00]} 3. Nc3 {[%clk 0:02:44]}  c6 {[%clk 0:03:01]} 4. f4 {[%clk 0:02:43]}  Qb6 {[%clk 0:03:01]} 5. h3 {[%clk 0:02:39]}  e5 {[%clk 0:03:00]} 6. dxe5 {[%clk 0:02:33]}  dxe5 {[%clk 0:03:01]} 7. Bd3 {[%clk 0:02:30]}  Bc5 {[%clk 0:02:57]} 8. Nf3 {[%clk 0:02:28]}  Nh5 {[%clk 0:02:48]} 9. Nxe5 {[%clk 0:02:05]}  Ng3 {[%clk 0:02:28]} 10. Rf1 {[%clk 0:01:48]}  Nxf1 {[%clk 0:02:28]} 11. Kxf1 {[%clk 0:01:47]}  Nd7 {[%clk 0:02:00]} 12. Nxd7 {[%clk 0:01:04]}  Bxd7 {[%clk 0:01:59]} 13. Na4 {[%clk 0:01:05]}  Qa5 {[%clk 0:01:58]} 14. c3 {[%clk 0:01:05]}  Be7 {[%clk 0:01:52]} 15. b4 {[%clk 0:01:05]}  Qc7 {[%clk 0:01:48]} 16. Be3 {[%clk 0:01:04]}  b6 {[%clk 0:01:42]} 17. Qf3 {[%clk 0:01:04]}  Rd8 {[%clk 0:01:39]} 18. Nb2 {[%clk 0:01:01]}  c5 {[%clk 0:01:31]} 19. b5 {[%clk 0:00:58]}  c4 {[%clk 0:01:25]} 20. Bxc4 {[%clk 0:00:54]}  Ba3 {[%clk 0:01:22]} 21. Qh5 {[%clk 0:00:16]}  O-O {[%clk 0:01:17]} 0-1


[Site "https://www.chess.com"]

[Event "Titled Tuesday Blitz December 06 Early 2022"]
[White "Shubenkova, Veronika"]
[Black "Rosenberg, Evan S"]
[WhiteFideId "44124040"]
[BlackFideId "2019299"]
[WhiteElo "2027"]
[BlackElo "2358"]
[Result "0-1"]
[Round "08"]
[TimeControl "180+1"]
[Date "2022.12.07"]
[WhiteClock "0:01:05"]
[BlackClock "0:00:12"]

1. e4 {[%clk 0:03:00]}  e5 {[%clk 0:02:59]} 2. Nf3 {[%clk 0:02:52]}  Nc6 {[%clk 0:03:00]} 3. Bb5 {[%clk 0:02:51]}  Nf6 {[%clk 0:02:57]} 4. Bxc6 {[%clk 0:02:51]}  dxc6 {[%clk 0:02:56]} 5. O-O {[%clk 0:02:52]}  Nxe4 {[%clk 0:02:52]} 6. Re1 {[%clk 0:02:51]}  Nf6 {[%clk 0:02:41]} 7. Nxe5 {[%clk 0:02:50]}  Be7 {[%clk 0:02:41]} 8. d4 {[%clk 0:02:49]}  O-O {[%clk 0:02:40]} 9. c3 {[%clk 0:02:48]}  Re8 {[%clk 0:02:39]} 10. Bg5 {[%clk 0:02:48]}  h6 {[%clk 0:02:37]} 11. Bh4 {[%clk 0:02:47]}  Be6 {[%clk 0:02:36]} 12. Nd2 {[%clk 0:02:37]}  c5 {[%clk 0:02:34]} 13. Ndf3 {[%clk 0:02:22]}  cxd4 {[%clk 0:02:31]} 14. Nxd4 {[%clk 0:02:21]}  Bd5 {[%clk 0:02:01]} 15. c4 {[%clk 0:02:18]}  Be4 {[%clk 0:02:01]} 16. Bxf6 {[%clk 0:02:16]}  Bxf6 {[%clk 0:02:01]} 17. Rxe4 {[%clk 0:02:16]}  Bxe5 {[%clk 0:01:57]} 18. Nf3 {[%clk 0:02:12]}  Bxb2 {[%clk 0:01:47]} 19. Rxe8+ {[%clk 0:02:11]}  Qxe8 {[%clk 0:01:46]} 20. Rb1 {[%clk 0:02:12]}  Rd8 {[%clk 0:01:43]} 21. Qc2 {[%clk 0:02:11]}  Ba3 {[%clk 0:01:13]} 22. Qb3 {[%clk 0:02:09]}  Bc5 {[%clk 0:01:08]} 23. Rb2 {[%clk 0:02:04]}  b6 {[%clk 0:00:52]} 24. g3 {[%clk 0:02:03]}  Qe4 {[%clk 0:00:50]} 25. Kg2 {[%clk 0:02:02]}  Rd3 {[%clk 0:00:49]} 26. Qa4 {[%clk 0:01:27]}  Qxf3+ {[%clk 0:00:45]} 27. Kh3 {[%clk 0:01:26]}  a5 {[%clk 0:00:21]} 28. Qe8+ {[%clk 0:01:25]}  Kh7 {[%clk 0:00:21]} 29. Re2 {[%clk 0:01:21]}  Rd6 {[%clk 0:00:19]} 30. Re5 {[%clk 0:01:14]}  Qxf2 {[%clk 0:00:13]} 31. Qc8 {[%clk 0:01:08]}  Qf1+ {[%clk 0:00:13]} 32. Kh4 {[%clk 0:01:08]}  Qf6+ {[%clk 0:00:12]} 33. Kh3 {[%clk 0:01:06]}  Qxe5 {[%clk 0:00:12]} 34. Qg4 {[%clk 0:01:05]}  Qe6 {[%clk 0:00:12]} 0-1


[Site "https://www.chess.com"]

[Event "Titled Tuesday Blitz December 06 Early 2022"]
[White "Simonovic, Miroslav"]
[Black "Hoffmann, Asa"]
[WhiteFideId "919152"]
[BlackFideId "2001470"]
[WhiteElo "2057"]
[BlackElo "2117"]
[Result "1-0"]
[Round "08"]
[TimeControl "180+1"]
[Date "2022.12.07"]
[WhiteClock "0:00:11"]
[BlackClock "0:00:28"]

1. d4 {[%clk 0:02:57]}  Nf6 {[%clk 0:02:58]} 2. Bg5 {[%clk 0:02:57]}  e6 {[%clk 0:02:57]} 3. e4 {[%clk 0:02:56]}  d6 {[%clk 0:02:56]} 4. f4 {[%clk 0:02:56]}  Be7 {[%clk 0:02:56]} 5. Bxf6 {[%clk 0:02:56]}  Bxf6 {[%clk 0:02:55]} 6. e5 {[%clk 0:02:57]}  Be7 {[%clk 0:02:54]} 7. Qg4 {[%clk 0:02:55]}  g6 {[%clk 0:02:54]} 8. Bd3 {[%clk 0:02:55]}  c5 {[%clk 0:02:51]} 9. dxc5 {[%clk 0:02:52]}  dxe5 {[%clk 0:02:50]} 10. fxe5 {[%clk 0:02:52]}  Bxc5 {[%clk 0:02:49]} 11. Nd2 {[%clk 0:02:49]}  Nc6 {[%clk 0:02:48]} 12. Ngf3 {[%clk 0:02:48]}  Bd7 {[%clk 0:02:32]} 13. a3 {[%clk 0:02:41]}  Qc7 {[%clk 0:02:32]} 14. O-O-O {[%clk 0:02:40]}  O-O-O {[%clk 0:02:31]} 15. Rhe1 {[%clk 0:02:35]}  Rhf8 {[%clk 0:02:16]} 16. Ne4 {[%clk 0:02:20]}  Be7 {[%clk 0:02:15]} 17. Nd6+ {[%clk 0:02:06]}  Bxd6 {[%clk 0:02:01]} 18. exd6 {[%clk 0:02:07]}  Qxd6 {[%clk 0:02:00]} 19. Bxg6 {[%clk 0:02:07]}  Qc5 {[%clk 0:01:57]} 20. Bxh7 {[%clk 0:02:00]}  f5 {[%clk 0:01:49]} 21. Qg6 {[%clk 0:01:36]}  Qe7 {[%clk 0:01:42]} 22. Ng5 {[%clk 0:01:32]}  Rf6 {[%clk 0:01:37]} 23. Qh5 {[%clk 0:01:25]}  Rh8 {[%clk 0:01:35]} 24. h4 {[%clk 0:01:24]}  e5 {[%clk 0:01:29]} 25. Qe2 {[%clk 0:01:11]}  e4 {[%clk 0:01:21]} 26. g4 {[%clk 0:01:05]}  e3 {[%clk 0:01:06]} 27. Bxf5 {[%clk 0:00:51]}  Bxf5 {[%clk 0:01:02]} 28. gxf5 {[%clk 0:00:52]}  Rxf5 {[%clk 0:00:58]} 29. Qxe3 {[%clk 0:00:49]}  Qxe3+ {[%clk 0:00:57]} 30. Rxe3 {[%clk 0:00:50]}  Rxh4 {[%clk 0:00:56]} 31. Re8+ {[%clk 0:00:47]}  Kc7 {[%clk 0:00:55]} 32. Ne6+ {[%clk 0:00:47]}  Kb6 {[%clk 0:00:56]} 33. b3 {[%clk 0:00:40]}  Rh2 {[%clk 0:00:55]} 34. Nd4 {[%clk 0:00:33]}  Rff2 {[%clk 0:00:51]} 35. Re6 {[%clk 0:00:27]}  a6 {[%clk 0:00:48]} 36. Kb1 {[%clk 0:00:20]}  Kc5 {[%clk 0:00:44]} 37. b4+ {[%clk 0:00:13]}  Kc4 {[%clk 0:00:43]} 38. Nxc6 {[%clk 0:00:11]}  bxc6 {[%clk 0:00:29]} 39. Rxc6+ {[%clk 0:00:12]}  Kb5 {[%clk 0:00:28]} 40. Rc5+ {[%clk 0:00:11]}  Ka4 {[%clk 0:00:28]} 41. Ra5# {[%clk 0:00:11]} 1-0


[Site "https://www.chess.com"]

[Event "Titled Tuesday Blitz December 06 Early 2022"]
[White "Sjugirov, Sanan"]
[Black "Abasov, Nijat"]
[WhiteFideId "4189302"]
[BlackFideId "13402960"]
[WhiteElo "2613"]
[BlackElo "2546"]
[Result "1/2-1/2"]
[Round "08"]
[TimeControl "180+1"]
[Date "2022.12.06"]
[WhiteClock "0:00:02"]
[BlackClock "0:00:05"]

1. e4 {[%clk 0:03:00]}  c5 {[%clk 0:03:00]} 2. Nf3 {[%clk 0:03:01]}  e6 {[%clk 0:03:01]} 3. d3 {[%clk 0:02:59]}  Nc6 {[%clk 0:03:00]} 4. g3 {[%clk 0:02:59]}  d5 {[%clk 0:03:01]} 5. Qe2 {[%clk 0:02:59]}  Nf6 {[%clk 0:03:00]} 6. Bg2 {[%clk 0:02:59]}  g6 {[%clk 0:02:57]} 7. O-O {[%clk 0:02:46]}  Bg7 {[%clk 0:02:57]} 8. c3 {[%clk 0:02:42]}  Ke7 {[%clk 0:02:38]} 9. e5 {[%clk 0:02:26]}  Nd7 {[%clk 0:02:37]} 10. Bg5+ {[%clk 0:02:26]}  f6 {[%clk 0:02:37]} 11. exf6+ {[%clk 0:02:27]}  Nxf6 {[%clk 0:02:37]} 12. Re1 {[%clk 0:02:21]}  Kf7 {[%clk 0:02:25]} 13. Be3 {[%clk 0:01:53]}  Qe7 {[%clk 0:02:15]} 14. Ng5+ {[%clk 0:01:51]}  Kg8 {[%clk 0:02:12]} 15. Bf4 {[%clk 0:01:50]}  Nd8 {[%clk 0:02:03]} 16. c4 {[%clk 0:01:45]}  h6 {[%clk 0:01:36]} 17. Nf3 {[%clk 0:01:45]}  Nc6 {[%clk 0:01:34]} 18. Nc3 {[%clk 0:01:42]}  g5 {[%clk 0:01:33]} 19. Bd2 {[%clk 0:01:38]}  d4 {[%clk 0:01:31]} 20. Ne4 {[%clk 0:01:37]}  e5 {[%clk 0:01:20]} 21. h4 {[%clk 0:01:29]}  Bf5 {[%clk 0:01:12]} 22. Nxf6+ {[%clk 0:01:01]}  Bxf6 {[%clk 0:01:13]} 23. h5 {[%clk 0:00:56]}  Bg4 {[%clk 0:01:08]} 24. b4 {[%clk 0:00:47]}  cxb4 {[%clk 0:01:07]} 25. a3 {[%clk 0:00:37]}  bxa3 {[%clk 0:01:08]} 26. Bc1 {[%clk 0:00:33]}  e4 {[%clk 0:01:02]} 27. Qa2 {[%clk 0:00:14]}  e3 {[%clk 0:00:35]} 28. Bxa3 {[%clk 0:00:14]}  Qf7 {[%clk 0:00:32]} 29. Nh2 {[%clk 0:00:10]}  Be6 {[%clk 0:00:30]} 30. Rf1 {[%clk 0:00:06]}  Qg7 {[%clk 0:00:15]} 31. f4 {[%clk 0:00:05]}  gxf4 {[%clk 0:00:14]} 32. gxf4 {[%clk 0:00:03]}  Re8 {[%clk 0:00:11]} 33. Kh1 {[%clk 0:00:03]}  Kf7 {[%clk 0:00:11]} 34. Rg1 {[%clk 0:00:04]}  Qh7 {[%clk 0:00:08]} 35. Qe2 {[%clk 0:00:03]}  Rhg8 {[%clk 0:00:04]} 36. Be4 {[%clk 0:00:03]}  Bf5 {[%clk 0:00:05]} 37. Bd5+ {[%clk 0:00:04]}  Be6 {[%clk 0:00:05]} 38. Be4 {[%clk 0:00:03]}  Bf5 {[%clk 0:00:05]} 39. Bd5+ {[%clk 0:00:04]}  Be6 {[%clk 0:00:06]} 40. Bf3 {[%clk 0:00:04]}  Bf5 {[%clk 0:00:05]} 41. Bd5+ {[%clk 0:00:02]} 1/2-1/2


[Site "https://www.chess.com"]

[Event "Titled Tuesday Blitz December 06 Early 2022"]
[White "Skibbe, Willi"]
[Black "Volkov, Maksim"]
[WhiteFideId "4682190"]
[BlackFideId "54123070"]
[WhiteElo "2387"]
[BlackElo "2257"]
[Result "0-1"]
[Round "08"]
[TimeControl "180+1"]
[Date "2022.12.07"]
[WhiteClock "0:02:04"]
[BlackClock "0:01:48"]

1. c4 {[%clk 0:03:00]}  e6 {[%clk 0:02:56]} 2. g3 {[%clk 0:03:00]}  d5 {[%clk 0:02:55]} 3. Bg2 {[%clk 0:02:59]}  Nf6 {[%clk 0:02:55]} 4. Nf3 {[%clk 0:02:53]}  dxc4 {[%clk 0:02:55]} 5. Qa4+ {[%clk 0:02:53]}  Nbd7 {[%clk 0:02:54]} 6. Qxc4 {[%clk 0:02:53]}  a6 {[%clk 0:02:54]} 7. Qc2 {[%clk 0:02:49]}  c5 {[%clk 0:02:48]} 8. O-O {[%clk 0:02:46]}  b5 {[%clk 0:02:47]} 9. Ne5 {[%clk 0:02:41]}  Nd5 {[%clk 0:02:47]} 10. Nxd7 {[%clk 0:02:39]}  Qxd7 {[%clk 0:02:46]} 11. Nc3 {[%clk 0:02:39]}  Bb7 {[%clk 0:02:43]} 12. Nxd5 {[%clk 0:02:38]}  Bxd5 {[%clk 0:02:43]} 13. b3 {[%clk 0:02:35]}  Rd8 {[%clk 0:02:38]} 14. d3 {[%clk 0:02:34]}  h5 {[%clk 0:02:06]} 15. Be3 {[%clk 0:02:12]}  h4 {[%clk 0:01:59]} 16. Bxc5 {[%clk 0:02:08]}  Bxg2 {[%clk 0:01:58]} 17. Kxg2 {[%clk 0:02:05]}  Qd5+ {[%clk 0:01:57]} 18. f3 {[%clk 0:02:03]}  Qxc5 {[%clk 0:01:57]} 19. Qd2 {[%clk 0:02:04]}  Be7 {[%clk 0:01:53]} 20. Rfc1 {[%clk 0:02:04]}  Qe5 {[%clk 0:01:48]} 0-1


[Site "https://www.chess.com"]

[Event "Titled Tuesday Blitz December 06 Early 2022"]
[White "Slovineanu"]
[Black "Devaev, Alexander"]
[BlackFideId "4169395"]
[WhiteElo "2249"]
[BlackElo "2225"]
[Result "0-1"]
[Round "08"]
[TimeControl "180+1"]
[Date "2022.12.07"]
[WhiteClock "0:00:07"]
[BlackClock "0:02:11"]

1. d4 {[%clk 0:03:00]}  Nf6 {[%clk 0:02:59]} 2. Nf3 {[%clk 0:02:59]}  e6 {[%clk 0:02:59]} 3. c4 {[%clk 0:02:59]}  c5 {[%clk 0:02:59]} 4. d5 {[%clk 0:02:58]}  exd5 {[%clk 0:03:00]} 5. cxd5 {[%clk 0:02:58]}  d6 {[%clk 0:03:01]} 6. Nc3 {[%clk 0:02:58]}  g6 {[%clk 0:03:02]} 7. e4 {[%clk 0:02:58]}  Bg7 {[%clk 0:03:03]} 8. Be2 {[%clk 0:02:58]}  O-O {[%clk 0:03:03]} 9. Be3 {[%clk 0:02:59]}  a6 {[%clk 0:03:04]} 10. e5 {[%clk 0:02:28]}  Ng4 {[%clk 0:03:01]} 11. Bg5 {[%clk 0:02:22]}  Qb6 {[%clk 0:02:37]} 12. exd6 {[%clk 0:02:01]}  Qxb2 {[%clk 0:02:37]} 13. Na4 {[%clk 0:01:49]}  Qxa1 {[%clk 0:02:35]} 14. Qxa1 {[%clk 0:01:49]}  Bxa1 {[%clk 0:02:35]} 15. O-O {[%clk 0:01:38]}  Bf6 {[%clk 0:02:30]} 16. Nb6 {[%clk 0:01:23]}  Ra7 {[%clk 0:02:28]} 17. Bf4 {[%clk 0:00:56]}  Nd7 {[%clk 0:02:26]} 18. Nxd7 {[%clk 0:00:46]}  Bxd7 {[%clk 0:02:27]} 19. h3 {[%clk 0:00:45]}  Re8 {[%clk 0:02:27]} 20. Bxa6 {[%clk 0:00:09]}  Rxa6 {[%clk 0:02:18]} 21. hxg4 {[%clk 0:00:10]}  Bxg4 {[%clk 0:02:19]} 22. Nd2 {[%clk 0:00:07]}  Rxa2 {[%clk 0:02:14]} 23. Nc4 {[%clk 0:00:07]}  Ra4 {[%clk 0:02:12]} 24. Nb6 {[%clk 0:00:07]}  Rxf4 {[%clk 0:02:11]} 0-1


[Site "https://www.chess.com"]

[Event "Titled Tuesday Blitz December 06 Early 2022"]
[White "Turzo, Attila"]
[Black "Tay, Junior"]
[WhiteFideId "704954"]
[BlackFideId "5800439"]
[WhiteElo "2477"]
[BlackElo "2216"]
[Result "1-0"]
[Round "08"]
[TimeControl "180+1"]
[Date "2022.12.07"]
[WhiteClock "0:01:45"]
[BlackClock "0:00:59"]

1. d4 {[%clk 0:03:00]}  Nf6 {[%clk 0:02:59]} 2. c4 {[%clk 0:03:00]}  e6 {[%clk 0:03:00]} 3. Nf3 {[%clk 0:03:00]}  d5 {[%clk 0:03:00]} 4. Nc3 {[%clk 0:03:00]}  c5 {[%clk 0:03:00]} 5. cxd5 {[%clk 0:02:58]}  exd5 {[%clk 0:03:01]} 6. Bg5 {[%clk 0:02:56]}  c4 {[%clk 0:03:00]} 7. Bxf6 {[%clk 0:02:50]}  gxf6 {[%clk 0:02:59]} 8. e4 {[%clk 0:02:48]}  Bb4 {[%clk 0:02:59]} 9. exd5 {[%clk 0:02:46]}  Qxd5 {[%clk 0:02:58]} 10. Qe2+ {[%clk 0:02:43]}  Be6 {[%clk 0:02:56]} 11. g3 {[%clk 0:02:33]}  Nc6 {[%clk 0:02:54]} 12. Bg2 {[%clk 0:02:32]}  Nxd4 {[%clk 0:02:48]} 13. Nxd4 {[%clk 0:02:32]}  Qxg2 {[%clk 0:02:47]} 14. O-O-O {[%clk 0:02:29]}  Bxc3 {[%clk 0:02:14]} 15. Nxe6 {[%clk 0:02:23]}  Be5 {[%clk 0:01:51]} 16. Nc7+ {[%clk 0:02:17]}  Ke7 {[%clk 0:01:51]} 17. Nxa8 {[%clk 0:02:16]}  Rxa8 {[%clk 0:01:51]} 18. Rhe1 {[%clk 0:02:14]}  Kf8 {[%clk 0:01:44]} 19. f4 {[%clk 0:02:10]}  Qxe2 {[%clk 0:01:43]} 20. Rxe2 {[%clk 0:02:11]}  Bc7 {[%clk 0:01:43]} 21. Rd7 {[%clk 0:02:10]}  Bd8 {[%clk 0:01:33]} 22. Rxb7 {[%clk 0:02:07]}  f5 {[%clk 0:01:32]} 23. Rd2 {[%clk 0:02:06]}  Bb6 {[%clk 0:01:24]} 24. Rdd7 {[%clk 0:02:05]}  Rc8 {[%clk 0:01:10]} 25. Rxf7+ {[%clk 0:02:04]}  Kg8 {[%clk 0:01:10]} 26. Rg7+ {[%clk 0:02:04]}  Kh8 {[%clk 0:01:11]} 27. Rxh7+ {[%clk 0:02:04]}  Kg8 {[%clk 0:01:11]} 28. Rbg7+ {[%clk 0:01:57]}  Kf8 {[%clk 0:01:11]} 29. h4 {[%clk 0:01:48]}  Bd4 {[%clk 0:01:00]} 30. Rh8+ {[%clk 0:01:44]}  Kxg7 {[%clk 0:00:59]} 31. Rxc8 {[%clk 0:01:45]} 1-0


[Site "https://www.chess.com"]